Cogmind - Beta 16 @@@ ROGUE MODE // 2025.10.30 @ 14:44:24 Player: Carcosa Result: Destroyed by G-47 Trooper with Particle Gun Performance ------------- Evolutions (2) 1000 Regions Visited (7) 1400 Robots Destroyed (46) 230 Value Destroyed (939) 939 Prototype IDs (24) 480 Alien Tech Used (0) 0 Bonus (300) 300 TOTAL SCORE: 4349 Bonus ------- Aligned with FarCom 300 Cogmind --------- Core Integrity 0/550 Matter 259/300 Energy 100/100 System Corruption 0% Temperature Cool (9) Movement Core (250) Ox4 Location -8/Materials Parts ------- > --- POWER (2) -------- (None) > --- PROPULSION (3) --- (None) > --- UTILITY (3) ------ Medium Storage Unit Experimental Sensor Array Transmission Jammer > --- WEAPON (3) ------- Mace > --- INVENTORY (10) --- Compact Battery (13) Target Analyzer Improved Propulsion Shielding Peak State ------------ > --- POWER ------------ Light Nuclear Core Light Nuclear Core > --- PROPULSION ------- Aluminum Leg Aluminum Leg Aluminum Leg > --- UTILITY ---------- Medium Storage Unit Improved Propulsion Shielding Supersonic Drone Bay > --- WEAPON ----------- EM Pulse Gun Small Laser Field Laser > --- INVENTORY -------- Improved Heat Sink Experimental Sensor Array Target Analyzer Transmission Jammer Heavy Laser Rocket Launcher Datajack Plasma Cutter [Rating: 28] Favorites ----------- Power Light Ion Engine Engine Light Ion Engine Power Core Light Nuclear Core Propulsion Aluminum Leg Treads Light Treads Leg Aluminum Leg Wheel Wheel Hover Unit Improved Hover Unit Flight Unit Surge Thruster Utility Small Storage Unit Device Heat Sink Storage Small Storage Unit Protection Light Armor Plating Weapon Medium Laser Energy Gun Medium Laser Ballistic Gun Light Assault Rifle Launcher Rocket Launcher Special Weapon Plasma Cutter Impact Weapon Mace Special Melee Weapon Datajack Build | -11 -10 -10 -9 -9 -9 -8 -8 ------- Run | Yrd Mat Min Mat Min Exi Min Mat Slots Evolved 4 | . . . 2 . . . 2 Power 1 | . . . . . . . 1 Propulsion 1 | . . . 1 . . . . Utility 1 | . . . 1 . . . . Weapon 1 | . . . . . . . 1 Parts Attached 42 | 7 5 1 8 3 3 . 15 Power 5 | 1 . . 2 . . . 2 Engine 3 | 1 . . 2 . . . . Core 2 | . . . . . . . 2 Reactor . | . . . . . . . . Propulsion 12 | 2 2 . 3 1 . . 4 Treads 1 | . . . . . . . 1 Leg 5 | . 2 . . 1 . . 2 Wheel 2 | 2 . . . . . . . Hover 2 | . . . 2 . . . . Flight 2 | . . . 1 . . . 1 Utility 12 | 1 2 . 1 1 3 . 4 Device 6 | 1 . . 1 1 1 . 2 Storage 3 | . 1 . . . 2 . . Processor . | . . . . . . . . Hackware . | . . . . . . . . Protection 3 | . 1 . . . . . 2 Artifact . | . . . . . . . . Weapon 13 | 3 1 1 2 1 . . 5 Energy Gun 6 | 2 . . . . . . 4 Energy Cannon . | . . . . . . . . Ballistic Gun 2 | 1 . . 1 . . . . Ballistic Cannon . | . . . . . . . . Launcher 2 | . 1 1 . . . . . Special Weapon 1 | . . . 1 . . . . Impact Weapon 1 | . . . . . . . 1 Slashing Weapon . | . . . . . . . . Piercing Weapon . | . . . . . . . . Special Melee Weapon 1 | . . . . 1 . . . Unidentified Prototypes 2 | . . . . 1 1 . . Parts Lost 26 | . 1 . 4 1 . . 20 Power 4 | . . . 2 . . . 2 Propulsion 7 | . 1 . . . . . 6 Utility 5 | . . . 1 1 . . 3 Weapon 10 | . . . 1 . . . 9 Highest Loss Streak 17 | . 1 . 4 5 . . 17 To Critical Strikes . | . . . . . . . . Average Backups 6 | 2 4 7 7 6 6 9 8 Power . | . . 1 . . . . . Propulsion 1 | 1 1 . 1 1 1 1 . Utility 1 | . . 2 . . . 3 4 Weapon 3 | 1 2 3 3 3 4 4 1 Tool/Special . | . . . . . . . . Unused Backups 2 | . . . 1 . . . 1 Power . | . . . . . . . . Propulsion . | . . . . . . . . Utility 2 | . . . 1 . . . 1 Weapon . | . . . . . . . . Tool/Special . | . . . . . . . . Average Slot Usage (%) 87 | . 97 100 87 80 88 88 77 Engine 5 | . 14 14 10 . . . . Core 2 | . . . . . . . 9 Leg 25 | . 12 28 22 30 33 33 21 Wheel 1 | . 14 . . . . . . Device 11 | . 10 . 12 17 20 11 9 Storage 12 | . 4 14 11 11 12 22 16 Protection 5 | . 12 14 10 . . . . Energy Gun 8 | . 20 11 5 5 . . 12 Ballistic Gun 9 | . 7 14 13 8 11 11 2 Launcher 1 | . . 2 2 . . . 3 Special Melee Weapon 3 | . . . . 4 11 11 1 Peak Build Rating 28 | 6 7 8 10 16 17 17 28 Average Rating 12 | 3 6 7 8 11 16 17 20 On Entrance 9 | . 6 7 8 7 16 17 17 Avg Prop Armor Cover (%) 8 | . . . . 8 8 8 7 Naked Turns . | . . . . . . . . Heaviest Build 31 | 7 15 17 18 10 16 16 31 Greatest Support 30 | 20 20 20 20 30 20 20 30 Greatest Overweight (x) 4 | . 1 . . . . . 4 Average Overweight (x) . | . . . . . . . . Largest Inventory Capacity 10 | 5 8 8 8 8 10 10 10 Average Capacity 8 | 5 5 8 8 8 8 10 10 Most Carried 10 | 5 6 8 8 7 9 9 10 Average Carried 6 | 2 4 7 7 6 6 9 8 Final Capacity 10 | 5 8 8 8 8 10 10 10 Final Carried 9 | 4 6 8 7 6 9 9 3 Class Distribution -------------------- 85% | Mutant 5% | Scavenger-Skirmisher 5% | Scavenger-Mutant 3% | Skirmisher Dominant Class ---------------- Mutant | -10/Materials Mutant | -10/Mines Mutant | -9/Materials Mutant | -9/Mines Mutant | -9/Exiles Mutant | -8/Mines Scavenger-Skirmisher | -8/Materials Resources | -11 -10 -10 -9 -9 -9 -8 -8 ----------- Run | Yrd Mat Min Mat Min Exi Min Mat Matter Collected 845 | 256 54 74 36 138 . . 287 Remotely . | . . . . . . . . Salvage Created 834 | 34 253 41 79 101 . . 326 Parts 81 | 3 24 11 22 2 . . 19 Haulers Intercepted 2 | . 1 . . . . . 1 Recyclers Shooed 1 | . . . . . . . 1 Parts Field Recycled . | . . . . . . . . Retrieved Matter . | . . . . . . . . Parts Self-Destructed . | . . . . . . . . Prevented . | . . . . . . . . Parts Restored . | . . . . . . . . Kills | -11 -10 -10 -9 -9 -9 -8 -8 ------- Run | Yrd Mat Min Mat Min Exi Min Mat Combat Hostiles Destroyed 30 | 1 7 3 10 2 . . 7 Guns 5 | 1 1 . . . . . 3 Cannons 2 | . . . . 2 . . . AOE 23 | . 6 3 10 . . . 4 Classes Destroyed 12 | 1 5 1 1 . . . 4 Worker 2 | . 1 . 1 . . . . Builder 3 | . . 1 1 . . . 1 Tunneler 3 | . 2 1 . . . . . Hauler 2 | . 1 . . . . . 1 Recycler 2 | . 2 . . . . . . Mechanic 1 | . . . . . . . 1 Operator 1 | . . . . . . . 1 Watcher 2 | . . . 2 . . . . Swarmer 19 | . 6 3 10 . . . . Grunt 9 | 1 1 . . 2 . . 5 Sentry 1 | . . . . . . . 1 Hunter 1 | . . . . . . . 1 Best Kill Streak 13 | 1 13 5 10 2 . . 7 Combat Bots Only 7 | 1 7 3 7 2 . . 4 Max Kills in Single Turn 5 | 1 5 5 4 1 . . 3 Gunslinging . | . . . . . . . . Exploded 4 | . 3 3 4 . . . 2 Melee . | . . . . . . . . Uniques/NPCs Destroyed . | . . . . . . . . Combat | -11 -10 -10 -9 -9 -9 -8 -8 -------- Run | Yrd Mat Min Mat Min Exi Min Mat Hostile Shots Fired 284 | 5 11 1 55 22 . . 190 Missed 86 | 1 4 . 25 6 . . 50 Hits 198 | 4 7 1 30 16 . . 140 Projectile 198 | 4 7 1 30 16 . . 140 Critical Strikes 9 | . . . 3 . . . 6 Damage Taken 3012 | 42 116 9 504 212 . . 2129 Core 666 | . 6 . 36 64 . . 560 Absorbed by Shields . | . . . . . . . . Redirected to Shielding 11 | . . . . . . . 11 Core Remaining (%) 90 | 100 . 97 . . . 75 . Volleys Fired 44 | 2 8 1 7 8 . . 18 Largest 3 | 2 2 1 2 2 . . 3 Hottest 143 | 60 90 33 70 70 . . 143 Shots Fired 88 | 4 16 1 11 15 . . 41 Gun 70 | 4 13 . 5 11 . . 37 Cannon . | . . . . . . . . Launcher 13 | . 3 1 5 . . . 4 Special 5 | . . . 1 4 . . . Kinetic 17 | 2 3 . 4 4 . . 4 Thermal 52 | 2 10 . 2 11 . . 27 Explosive 13 | . 3 1 5 . . . 4 Electromagnetic 6 | . . . . . . . 6 Robot Hit Streak 15 | 1 2 3 5 8 . . 15 Robot Miss Streak 4 | 3 4 . 1 1 . . 4 Penetration Max . | . . . . . . . . Secondary Targets 1 | . . . . . . . 1 Max Gunslinging Chain 1 | . . . . . . . 1 Shots Hit Robots 52 | 1 6 1 3 13 . . 28 Core Hits 68 | 1 14 3 18 7 . . 25 Critical Kills 1 | . . . . . . . 1 Critical Parts Destroyed . | . . . . . . . . Critical Strikes 3 | . . . . 1 . . 2 Burn 2 | . . . . 1 . . 1 Destroy 1 | . . . . . . . 1 Melee Attacks 1 | . . . . 1 . . . Impact . | . . . . . . . . Slashing . | . . . . . . . . Piercing . | . . . . . . . . Sneak Attacks 1 | . . . . 1 . . . Combat Hostiles . | . . . . . . . . Follow-up Attacks . | . . . . . . . . Damage Inflicted 2850 | 15 858 262 643 132 . . 940 Guns 533 | 15 72 . 22 88 . . 336 Cannons . | . . . . . . . . Explosions 2273 | . 786 262 621 . . . 604 Melee . | . . . . . . . . Ramming . | . . . . . . . . Kinetic 99 | 15 23 . 10 25 . . 26 Thermal 1133 | . 482 . 272 107 . . 272 Explosive 1580 | . 353 262 361 . . . 604 Electromagnetic 38 | . . . . . . . 38 Impact . | . . . . . . . . Slashing . | . . . . . . . . Piercing . | . . . . . . . . Highest Corruption . | . . . . . . . . Average Corruption . | . . . . . . . . Corruption Purged . | . . . . . . . . Corruption Blocked . | . . . . . . . . Overload Shots . | . . . . . . . . Overflow Damage 117 | . 60 48 8 . . . 1 Projectiles . | . . . . . . . . Explosions 117 | . 60 48 8 . . . 1 Melee . | . . . . . . . . Knockbacks . | . . . . . . . . Impact . | . . . . . . . . Kinetic . | . . . . . . . . Secondary . | . . . . . . . . Self-Inflicted Damage 270 | . 47 . 159 . . . 64 Shots 6 | . 2 . 2 . . . 2 Rammed . | . . . . . . . . Targets Rammed . | . . . . . . . . Kicked . | . . . . . . . . Crushed . | . . . . . . . . Highest Temperature 361 | 6 18 . 9 12 . . 361 Average Temperature 105 | 6 8 . 4 10 . . 136 Received Heat Transfer 1212 | 24 24 . 99 120 . . 945 Effects 1 | . . . . . . . 1 Short Circuit 1 | . . . . . . . 1 Siege Activations . | . . . . . . . . Martial Activations . | . . . . . . . . Shielding Activations . | . . . . . . . . Robots Disrupted . | . . . . . . . . Combat Hostiles . | . . . . . . . . Robots Corrupted . | . . . . . . . . Combat Hostiles . | . . . . . . . . Parts Fried . | . . . . . . . . Impact Corruptions . | . . . . . . . . Robots Melted . | . . . . . . . . Combat Hostiles . | . . . . . . . . Parts Melted 3 | . . . . 3 . . . Heat Transferred 1910 | . 548 . 237 407 . . 718 Parts Sabotaged . | . . . . . . . . Parts Stolen . | . . . . . . . . Parts Stripped . | . . . . . . . . Power Chain Reactions . | . . . . . . . . Alert | -11 -10 -10 -9 -9 -9 -8 -8 ------- Run | Yrd Mat Min Mat Min Exi Min Mat Maximum Alert Level 1 | . 1 . 1 . . . . Low Security (%) 92 | 100 47 100 90 100 . 100 100 Level 1 7 | . 52 . 9 . . . . Level 2 . | . . . . . . . . Level 3 . | . . . . . . . . Level 4 . | . . . . . . . . Level 5 . | . . . . . . . . High Security . | . . . . . . . . Max Security . | . . . . . . . . Peak Influence 354 | 20 312 102 354 156 . . 87 Initial 126 | . 13 102 30 126 . . . Average 62 | 3 155 35 97 99 . . 23 Influence Increases 1167 | 20 332 89 434 50 . . 242 Destroy 0b10 Robot/C 600 | 20 140 60 200 40 . . 140 Destroy 0b10 Robot/NC 80 | . 30 10 20 . . . 20 Destroy Leader 118 | . 32 10 34 10 . . 32 Successful Hack 4 | . . . 4 . . . . Disable Machine 225 | . 105 . 105 . . . 15 Destroy Structure 140 | . 25 9 71 . . . 35 Influence Decreases 1167 | . 90 272 189 338 36 . 242 Entered New Map 450 | . 7 160 49 198 36 . . Time Decay 540 | . 73 112 100 130 . . 125 Lost Part 167 | . 10 . 40 10 . . 107 Lost Ally 10 | . . . . . . . 10 Squads Dispatched 6 | . 2 . . . . . 4 Investigation . | . . . . . . . . Extermination . | . . . . . . . . Reinforcement 3 | . 2 . . . . . 1 Assault . | . . . . . . . . Garrison 3 | . . . . . . . 3 Intercept . | . . . . . . . . Searches Triggered . | . . . . . . . . Construction Impeded . | . . . . . . . . Haulers Reinforced . | . . . . . . . . Active Scanning Responses . | . . . . . . . . Cargo Convoy Interrupts . | . . . . . . . . Stealth | -11 -10 -10 -9 -9 -9 -8 -8 --------- Run | Yrd Mat Min Mat Min Exi Min Mat Distress Signals 2 | . . . 1 . . . 1 Communications Jammed . | . . . . . . . . Distress Signals . | . . . . . . . . Times Spotted 54 | 1 11 3 15 3 . . 21 Peak Tracking Total 12 | 1 4 3 9 2 . . 12 Tactical Retreats . | . . . . . . . . Traps | -11 -10 -10 -9 -9 -9 -8 -8 ------- Run | Yrd Mat Min Mat Min Exi Min Mat Traps Triggered . | . . . . . . . . Indirectly . | . . . . . . . . Trap Hack Attempts . | . . . . . . . . Triggered . | . . . . . . . . Disarmed . | . . . . . . . . Reprogrammed . | . . . . . . . . Reused . | . . . . . . . . Traps Extracted . | . . . . . . . . Installed . | . . . . . . . . Triggered . | . . . . . . . . Machines | -11 -10 -10 -9 -9 -9 -8 -8 ---------- Run | Yrd Mat Min Mat Min Exi Min Mat Machines Disabled 16 | . 7 . 8 . . . 1 Max in Single Turn 8 | . 7 . 8 . . . 1 Machines Repaired . | . . . . . . . . Machines Dismantled . | . . . . . . . . Machines Sabotaged . | . . . . . . . . Overloaded Fab Kills . | . . . . . . . . Hacking | -11 -10 -10 -9 -9 -9 -8 -8 --------- Run | Yrd Mat Min Mat Min Exi Min Mat Machines Accessed 12 | . 3 . 2 1 5 . 1 Terminals 6 | . 3 . 1 1 . . 1 Fabricators . | . . . . . . . . Repair Stations . | . . . . . . . . Recycling Units 1 | . . . 1 . . . . Scanalyzers . | . . . . . . . . Garrison Access . | . . . . . . . . Total Hacks 70 | . 4 . 9 2 50 . 5 Successful 62 | . 4 . 4 . 50 . 4 Failed 8 | . . . 5 2 . . 1 Catastrophic . | . . . . . . . . Database Lockouts . | . . . . . . . . Manual 1 | . . . . . 1 . . Terminals 15 | . 4 . 4 2 . . 5 Fabricators . | . . . . . . . . Repair Stations . | . . . . . . . . Recycling Units 5 | . . . 5 . . . . Scanalyzers . | . . . . . . . . Garrison Access . | . . . . . . . . Terminal Hacks 59 | . 4 . 1 . 50 . 4 Record 55 | . 3 . . . 49 . 3 Robot Analysis 1 | . 1 . . . . . . Emergency Access Points 1 | . . . 1 . . . . Alert Level 1 | . . . . . . . 1 Proto ID Catalog 1 | . . . . . 1 . . Fabricator Hacks . | . . . . . . . . Repair Station Hacks . | . . . . . . . . Recycling Unit Hacks 3 | . . . 3 . . . . Process 1 | . . . 1 . . . . Report Inventory 1 | . . . 1 . . . . Retrieve Matter 1 | . . . 1 . . . . Scanalyzer . | . . . . . . . . Garrison Access Hacks . | . . . . . . . . Unauthorized Hacks . | . . . . . . . . Terminals . | . . . . . . . . Fabricators . | . . . . . . . . Repair Stations . | . . . . . . . . Recycling Units . | . . . . . . . . Scanalyzers . | . . . . . . . . Garrison Access . | . . . . . . . . Data Cores Recovered . | . . . . . . . . Used . | . . . . . . . . Hacking Detections 7 | . 3 . 2 1 . . 1 Full Trace Events . | . . . . . . . . Feedback Events . | . . . . . . . . Feedback Blocked . | . . . . . . . . Robot Schematics Acquired . | . . . . . . . . Robots Built . | . . . . . . . . Authchips . | . . . . . . . . Time . | . . . . . . . . Total Robot Build Rating . | . . . . . . . . Part Schematics Acquired . | . . . . . . . . Parts Built . | . . . . . . . . Authchips . | . . . . . . . . Time . | . . . . . . . . Total Part Build Rating . | . . . . . . . . Part Studies Acquired . | . . . . . . . . Parts Repaired . | . . . . . . . . Time . | . . . . . . . . Parts Recycled . | . . . . . . . . Recycled Matter 53 | . . . 53 . . . . Retrieved Matter 53 | . . . 53 . . . . Retrieved Components . | . . . . . . . . Parts Scanalyzed . | . . . . . . . . Part Schematics Acquired . | . . . . . . . . Parts Damaged . | . . . . . . . . Bothacking | -11 -10 -10 -9 -9 -9 -8 -8 ------------ Run | Yrd Mat Min Mat Min Exi Min Mat Used RIF Installer . | . . . . . . . . Robots Hacked 1 | . . . . 1 . . . Non-combat 1 | . . . . 1 . . . Combat . | . . . . . . . . Robot Hacks Applied 1 | . . . . 1 . . . parse_system 1 | . . . . 1 . . . Relay Couplers Released . | . . . . . . . . Fabnet Peak Effective % . | . . . . . . . . Robots Rewired . | . . . . . . . . Allies Hacked . | . . . . . . . . Hacks Repelled . | . . . . . . . . Allies | -11 -10 -10 -9 -9 -9 -8 -8 -------- Run | Yrd Mat Min Mat Min Exi Min Mat Total Allies 2 | . . . . 2 . . . Largest Group 2 | . . . . 2 2 . . Highest-Rated Group 51 | . . . . 51 51 . . Highest-Rated Ally 31 | . . . . 31 31 . . Total Orders 1 | . . . . . . . 1 RETURN 1 | . . . . . . . 1 Ally Attacks . | . . . . . . . . Total Damage . | . . . . . . . . Kills . | . . . . . . . . Allies Corrupted . | . . . . . . . . Allies Melted . | . . . . . . . . Intel | -11 -10 -10 -9 -9 -9 -8 -8 ------- Run | Yrd Mat Min Mat Min Exi Min Mat Active Infowar (turns) 230 | . . . 214 8 . . 8 Sensors 230 | . . . 214 8 . . 8 Jamming 7 | . . . . . . . 7 Robot Analysis Total 1 | . 1 . . . . . . Derelict Logs Recovered 3 | . . 2 . 1 . . . Drone Launches 3 | . . . . . . . 3 Drone Recoveries 2 | . . . . . . . 2 Exploration | -11 -10 -10 -9 -9 -9 -8 -8 ------------- Run | Yrd Mat Min Mat Min Exi Min Mat Turns Passed 2071 | 78 204 397 215 272 383 52 470 Spaces Moved 1523 | 77 174 326 138 192 312 44 260 Core 34 | 23 . . . . . . 11 Treads 13 | . . . . . . . 13 Legs 1312 | . 68 326 138 192 312 44 232 Wheels 160 | 54 106 . . . . . . Hover . | . . . . . . . . Flight 4 | . . . . . . . 4 Fastest Speed 50 | 50 80 120 120 120 120 120 120 Average Speed 117 | 71 96 120 120 120 120 120 138 Slowest Speed 250 | 80 120 120 120 120 120 120 250 Overloaded Moves . | . . . . . . . . Propulsion Burnouts . | . . . . . . . . Robots Hopped . | . . . . . . . . Potential Cave-ins . | . . . . . . . . Cave-ins Triggered . | . . . . . . . . Exploration Rate (%) 40 | 7 44 84 23 51 64 20 28 Regions Visited 7 Branch Regions 4 Pre-discovered Areas 2 | . . 1 . . 1 . . Known Exits Taken 2 | . . 1 . . . 1 . Unknown Exits Taken 5 | 1 1 . 1 1 1 . . Scrap Searched 1 | . . 1 . . . . . Spaces Dug . | . . . . . . . . Terrain Destroyed 139 | . 26 10 68 . . . 35 Melee . | . . . . . . . . Projectile . | . . . . . . . . AOE 139 | . 26 10 68 . . . 35 Terrain Rammed . | . . . . . . . . Walls Destroyed . | . . . . . . . . Machines Disabled . | . . . . . . . . Actions | -11 -10 -10 -9 -9 -9 -8 -8 --------- Run | Yrd Mat Min Mat Min Exi Min Mat Total 1705 | 95 193 331 172 213 320 43 338 Wait 17 | . . . . 5 . . 12 Move 1516 | 76 173 325 137 191 311 43 260 Hop . | . . . . . . . . Pick Up 46 | 10 5 3 6 2 4 . 16 Fast Attach . | . . . . . . . . Attach 39 | 6 3 . 5 3 1 . 21 Detach 4 | . . . 1 . 1 . 2 Swap 25 | 1 3 1 12 3 2 . 3 Drop 13 | . 1 1 4 . 1 . 6 Fire 44 | 2 8 1 7 8 . . 18 Melee 1 | . . . . 1 . . . Ram . | . . . . . . . . Kick . | . . . . . . . . Crush . | . . . . . . . . Escape Stasis . | . . . . . . . . Rewire . | . . . . . . . . Trap . | . . . . . . . . Miscellaneous . | . . . . . . . . Route ------- -11/Scrapyard -10/Materials -10/Mines (discovered 2 exits: *Mat x2) -9/Materials -9/Mines (discovered 2 exits: Mat / *Exi) -9/Exiles (discovered 2 exits: [*Min x2]) -8/Mines -8/Materials History --------- Turn | Location | Event 2 | -11/Scrapyard | Met Revision 17 53 | -11/Scrapyard | Discovered new exit (range 8) 79 | -11/Scrapyard | Entered Materials 140 | -10/Materials | Discovered new exit (range 15) 211 | -10/Materials | Destroyed 7 combat bots 283 | -10/Materials | Entered Mines 304 | -10/Mines | Build established: Mutant 363 | -10/Mines | Learned location of Storage (-7) 370 | -10/Mines | Learned Materials emergency access door positions 380 | -10/Mines | Identified exit to Materials 623 | -10/Mines | Received a Rocket Launcher from a helpful Derelict 659 | -10/Mines | Discovered exit to Materials (range 13) 680 | -10/Mines | Entered Materials 680 | -9/Materials | Evolved 2 slots: Propulsion x1, Utility x1 869 | -9/Materials | Discovered new exit (range 13) 895 | -9/Materials | Entered Mines 897 | -9/Mines | Destroyed 7 combat bots 936 | -9/Mines | Lost 5 parts (2p2u1w) 1016 | -9/Mines | Found a damaged Exp. Sensor Array with a note attached 1018 | -9/Mines | Found Prototype Device 1019 | -9/Mines | Identified Exp. Sensor Array 1070 | -9/Mines | Identified exit to Materials 1150 | -9/Mines | Deemed a non-threat by the Exiles lab entrance 1151 | -9/Mines | Discovered new exit (range 5) 1167 | -9/Mines | Entered Exiles 1167 | -9/Exiles | Accompanied by 2 allies 1187 | -9/Exiles | Discovered new exit (range 14) 1197 | -9/Exiles | Led the pair of lost Derelicts to a safe place 1219 | -9/Exiles | Met 8R-AWN 1244 | -9/Exiles | Met EX-HEX 1283 | -9/Exiles | Met EX-BIN 1305 | -9/Exiles | Aligned with FarCom system 1307 | -9/Exiles | Given EX-Vault access code 1369 | -9/Exiles | Opened EX-Vault 1375 | -9/Exiles | Found Prototype Device 1376 | -9/Exiles | Identified Supersonic Drone Bay 1405 | -9/Exiles | Warned to stay clear of 0b10 Research branches 1439 | -9/Exiles | Met EX-DEC 1452 | -9/Exiles | Learned location of Zion (-7) 1538 | -9/Exiles | Discovered new exit (range 12) 1550 | -9/Exiles | Left Exiles lab with Supersonic Drone Bay 1550 | -9/Exiles | Entered Mines 1595 | -8/Mines | Discovered exit to Materials (range 3) 1602 | -8/Mines | Entered Materials 1602 | -8/Materials | Evolved 2 slots: Power x1, Weapon x1 1737 | -8/Materials | Lost 3 parts (1n2w) 2021 | -8/Materials | Core integrity fell below 50% 2047 | -8/Materials | Core integrity fell below 20% 2072 | -8/Materials | Destroyed by G-47 Trooper with Particle Gun Last Messages --------------- Trailblazer released from Supersonic Drone Bay. Trailblazer destroyed. K-01 Serf collects debris. Supersonic Drone Bay destroyed. K-01 Serf collects debris. Lgt. Treads destroyed. Lgt. Armor Plating destroyed. K-01 Serf collects debris. Critical hit (Burn: +37). Acquired Surge Thruster. The Surge Thruster is "overloadable", activating it again increases its output for additional resource costs, and may damage the unit. See Burnout stat context help for more info. Acquired Mace. Critical hit (Burn: +37). W-25 Informer sends out distress signal. Surge Thruster destroyed. Acquired Com. Battery. S-10 Pest destroyed. Map ----- +----------------------------------------------------+ | ??????# !# *# #????????????# #???????????? | | ??????# # %########???????######???????????? | | ??????# "T" # #! #????????????????????????? | | ??????# """ # # #????????????????????????? | | ??????######## # " " #????????????????????????? | | ?????????????# ["G"[!#????????????????????????? | | ?????????????# ["""=[#????????????????????????? | | ?????????????# =! %%!#????????????????????????? | | ?????????????# ###????????????????????????? | | ?????????????# % # % ##??????????????????????????? | | ?????????????# ##*##???????????????????????????? | | ?????????????# ## #????????????????????????????? | | ?????????????+ ## ????????????????????????????? | | ?????????????# ## "???????????????????????????? | | ?????????????# ## ""??????????????????????????? | | ?????????????# ## """?????????????????????????? | | ?????????????# ## ? ????????????????????????? | | ?????????????# #? ""? ???????????????????????? | | ?????????????# #? ""?? ???????????????????????? | | ?????????????# #? "???????????????????????????? | | ?????????????# #? ???????????????????????????? | | ?????????????# #?####+###??????????????????????? | | ??????####+### Y#### ##############?????????? | | ?? k Y % ????????? | | ?? ^ g T ????????? | | ?? a @ a ????????? | | ??################### k##########?????????????? | | ????????????????????##a ##??????????????????????? | | ?????????????????????# #???????????????????????? | | ?????????????????????#gg #???????????????????????? | | ?????????????????????# s #???????????????????????? | | ?????????????????????# #???????????????????????? | | ?????????????????????#= #???????????????????????? | | ?????????????????????#%[ #???????????????????????? | | ?????????????????????#s #???????????????????????? | | ?????????????????????#s #???????????????????????? | | ????????????????????? ???????????????????????? | | ????????????????????? ???w???????????????????? | | ????????????????????? ???????????????????????? | | ?????????????????????#+###???????????????????????? | | ?????????????????????????????????????????????????? | | ????????????????????????????Y????????????????????? | | ?????????????????????????????????????????????????? | | ?????????????????????????????????????????????????? | | ?????????????????????????????????????????????????? | | ?????????????????????????????????????????????????? | | ?????????????????????????????????????????????????? | | ?????????????????????????????????????????????????? | | ?????????????????????????????????????????????????? | | ?????????????????????????????????????????????????? | +----------------------------------------------------+ Best States ------------- Heat Dissipation 45 Energy Generation 23 Energy Capacity 420 Matter Stores 300 Matter Capacity 300 Sight Range 16 Robot Scan Range 20 Terrain Scan Density 10 Armor Coverage 150 Propulsion Shielding 66 Evasion (%) 55 Recoil Reduction 1 Item Schematics ----------------- None Robot Schematics ------------------ None Fabricated ------------ Nothing Repaired ---------- Nothing Studied --------- None Alien Tech Used ----------------- None Achievements -------------- Crack Shot DATA ERROR: Steam Global Achievement% Let's See Who's Tougher Librarian Loot Pinata Organ Harvest Overwhelming Risk Taker Sixth Sense Tourist Uninvited Guest Challenges ------------ None Game ------ Seed ControlStasisRailcannon Manual? 0 Play Time 01:12:56 Cumulative 1.7 hours Start 2025.10.30 @ 11:45:20 End 2025.10.30 @ 14:44:24 Sessions 3 Manual Loads 0 Difficulty Rogue Special Mode None Game No. 2 Rogue 2 Adventurer 0 Explorer 0 Win Type - Total 0 Types 0/0/0/0/0/0/0/0/0/0 Lore% 5 Gallery% 3 Achievement% 3 Wizard Run 0 Options --------- Layout 1 ASCII 0 Keyboard 0 Movement Mouse Keybinds 0 Fullscreen 1 Font 32/SmallcapsGlow Map View 50x35 Zoom Use 0% Tactical HUD 0 Map Filters NONE Filters NONE Steam 1 RUN: 8fcc1d31-7858-4f37-9d43-a08ced2c0a7a